[Event "GER-chT Youth Countries 2020"]
[Site "Berlin"]
[Date "2020.10.01"]
[Round "3"]
[White "Dahl, Christoph"]
[Black "Grossmann, Piet"]
[Result "1-0"]
[ECO "C10"]
[WhiteElo "2262"]
[BlackElo "1849"]
[Annotator "ChessBase"]
[PlyCount "89"]
[EventDate "2020.09.30"]
[EventType "team-tourn"]
[EventRounds "7"]
[EventCountry "GER"]
[SourceTitle "playchess.com"]
[Source "ChessBase"]
[SourceQuality "1"]
[TimeControl "30/5400+30:0"]

1. e4 {[%emt 0:00:00]} e6 {[%emt 0:00:00]} 2. d4 {[%emt 0:00:00]} d5 {[%emt 0:00:00]} 3. Nc3 {[%emt 0:00:26]} dxe4 {[%emt 0:00:00]} 4. Nxe4 {[%emt 0:00:31]} Nd7 {[%emt 0:00:00]} 5. Nf3 {[%emt 0:00:52]} Ngf6 {[%emt 0:00:01]} 6. Bg5 {[%emt 0:00:53]} Be7 {[%emt 0:00:23]} 7. Nxf6+ {[%emt 0:01:19]} Nxf6 {[%emt 0:15:58]} 8. Bd3 {[%emt 0:03:25]} Nd5 {[%emt 0:13:09]} 9. Bxe7 {[%emt 0:04:41]} Qxe7 {[%emt 0:00:05]} 10. Qd2 {[%emt 0:00:36]} O-O {[%emt 0:01:00]} 11. O-O-O {[%emt 0:01:59]} Nb4 {[%emt 0:07:15]} 12. a3 {[%emt 0:02:31]} Nxd3+ {[%emt 0:02:09]} 13. Qxd3 {[%emt 0:00:08]} a5 {[%emt 0:04:30]} 14. h4 {[%emt 0:02:26]} Qf6 {[%emt 0:15:16]} 15. Ne5 {[%emt 0:08:58]} c5 {[%emt 0:06:09]} 16. Qe3 {[%emt 0:01:22]} b6 {[%emt 0:17:25]} 17. dxc5 {[%emt 0:01:30]} bxc5 {[%emt 0:00:10]} 18. Qxc5 {[%emt 0:01:28]} Bb7 {[%emt 0:07:05]} 19. Nd7 {[%emt 0:03:48]} Qf4+ {[%emt 0:02:09]} 20. Qe3 {[%emt 0:01:31]} Qxe3+ {[%emt 0:01:02]} 21. fxe3 {[%emt 0:00:03]} Rfd8 {[%emt 0:03:03]} 22. Rd2 {[%emt 0:02:52]} Bd5 {[%emt 0:02:49]} 23. Nb6 {[%emt 0:00:26]} Ra6 {[%emt 0:00:54]} 24. Nxd5 {[%emt 0:00:07]} exd5 {[%emt 0:00:45]} 25. Rhd1 {[%emt 0:00:06]} Rad6 {[%emt 0:00:37]} 26. Rd4 {[%emt 0:00:14]} f5 {[%emt 0:00:29]} 27. c4 {[%emt 0:00:35]} Rc8 {[%emt 0:00:35]} 28. Kb1 {[%emt 0:00:30]} g6 {[%emt 0:00:29]} 29. Rxd5 {[%emt 0:00:22]} Rdc6 {[%emt 0:00:30]} 30. Rd8+ {[%emt 0:01:52]} Kg7 {[%emt 0:00:30]} 31. Rxc8 {[%emt 1:30:40]} Rxc8 {[%emt 1:30:05]} 32. Rc1 {[%emt 0:00:47]} a4 {[%emt 0:00:31]} 33. c5 {[%emt 0:01:20]} Kh6 {[%emt 0:00:56]} 34. c6 {[%emt 0:00:18]} Kh5 {[%emt 0:00:13]} 35. Rc4 {[%emt 0:00:07]} g5 {[%emt 0:00:43]} 36. hxg5 {[%emt 0:00:06]} Kxg5 {[%emt 0:00:04]} 37. c7 {[%emt 0:00:11]} Kf6 {[%emt 0:00:21]} 38. b4 {[%emt 0:00:30]} axb3 {[%emt 0:00:26]} 39. Kb2 {[%emt 0:00:04]} Ke6 {[%emt 0:00:21]} 40. Kxb3 {[%emt 0:00:09]} Kd6 {[%emt 0:01:18]} 41. a4 {[%emt 0:00:13]} Kd7 {[%emt 0:00:00]} 42. Kb4 {[%emt 0:00:00]} Kd6 {[%emt 0:00:00]} 43. Kb5 {[%emt 0:00:00]} Rxc7 {[%emt 0:00:00]} 44. Rxc7 {[%emt 0:00:00]} Kxc7 {[%emt 0:00:00]} 45. Kc5 {[%emt 0:00:00]} 1-0

[Event "GER-chT Youth Countries 2020"]
[Site "Berlin"]
[Date "2020.10.01"]
[Round "3"]
[White "Costa, Leonardo"]
[Black "Viet, Silas"]
[Result "1-0"]
[ECO "B67"]
[WhiteElo "2245"]
[BlackElo "1846"]
[Annotator "ChessBase"]
[PlyCount "63"]
[EventDate "2020.09.30"]
[EventType "team-tourn"]
[EventRounds "7"]
[EventCountry "GER"]
[SourceTitle "playchess.com"]
[Source "ChessBase"]
[SourceQuality "1"]
[TimeControl "30/5400+30:0"]

1. e4 {[%emt 0:00:00]} c5 {[%emt 0:00:00]} 2. Nf3 {[%emt 0:00:00]} d6 {[%emt 0:00:00]} 3. d4 {[%emt 0:00:00]} cxd4 {[%emt 0:00:00]} 4. Nxd4 {[%emt 0:00:00]} Nf6 {[%emt 0:00:00]} 5. Nc3 {[%emt 0:00:00]} Nc6 {[%emt 0:00:05]} 6. Bg5 {[%emt 0:00:04]} e6 {[%emt 0:00:07]} 7. Qd2 {[%emt 0:00:06]} a6 {[%emt 0:00:10]} 8. O-O-O {[%emt 0:00:28]} Bd7 {[%emt 0:00:06]} 9. f4 {[%emt 0:01:48]} b5 {[%emt 0:00:06]} 10. a3 {[%emt 0:30:31]} Qb6 {[%emt 0:02:04]} 11. Bxf6 {[%emt 0:01:16]} gxf6 {[%emt 0:00:07]} 12. Nb3 {[%emt 0:00:03]} O-O-O {[%emt 0:05:24]} 13. Be2 {[%emt 0:01:03]} Rg8 {[%emt 0:02:55]} 14. Bh5 {[%emt 0:01:07]} Be8 {[%emt 0:05:05]} 15. Rhf1 {[%emt 0:02:01]} Be7 {[%emt 0:08:05]} 16. Qe2 {[%emt 0:00:53]} Kb8 {[%emt 0:03:54]} 17. g3 {[%emt 0:08:25]} Rc8 {[%emt 0:02:59]} 18. Nd5 {[%emt 0:03:13]} Qa7 {[%emt 0:24:45]} 19. Nxe7 {[%emt 0:00:07]} Qxe7 {[%emt 0:00:58]} 20. Rd2 {[%emt 0:02:06]} e5 {[%emt 0:13:15]} 21. Qf2 {[%emt 0:03:35]} f5 {[%emt 0:11:28]} 22. Qb6+ {[%emt 0:08:31]} Qb7 {[%emt 0:00:11]} 23. Qxb7+ {[%emt 0:00:03]} Kxb7 {[%emt 0:00:05]} 24. exf5 {[%emt 0:01:21]} Kc7 {[%emt 0:02:26]} 25. Rfd1 {[%emt 0:01:45]} Rd8 {[%emt 0:00:07]} 26. Bf3 {[%emt 0:02:47]} f6 {[%emt 0:06:40]} 27. fxe5 {[%emt 0:07:54]} dxe5 {[%emt 0:07:11]} 28. Rxd8 {[%emt 0:06:08]} Nxd8 {[%emt 0:00:07]} 29. Nc5 {[%emt 0:00:48]} Nc6 {[%emt 0:02:47]} 30. Nxa6+ {[%emt 0:01:24]} Kb6 {[%emt 0:00:14]} 31. Rd6 {[%emt 1:30:19]} Kxa6 {[%emt 1:33:02]} 32. Bxc6 {[%emt 0:00:05]} 1-0

[Event "GER-chT Youth Countries 2020"]
[Site "Berlin"]
[Date "2020.10.01"]
[Round "3"]
[White "Hesse, Henrik"]
[Black "Muckle, Julius"]
[Result "0-1"]
[ECO "A11"]
[WhiteElo "2242"]
[BlackElo "2427"]
[Annotator "ChessBase"]
[PlyCount "112"]
[EventDate "2020.09.30"]
[EventType "team-tourn"]
[EventRounds "7"]
[EventCountry "GER"]
[SourceTitle "playchess.com"]
[Source "ChessBase"]
[SourceQuality "1"]
[TimeControl "30/5400+30:0"]

1. c4 c6 {[%emt 0:00:00]} 2. g3 {[%emt 0:00:00]} d5 {[%emt 0:00:00]} 3. Nf3 {[%emt 0:01:14]} Nf6 {[%emt 0:00:00]} 4. Bg2 {[%emt 0:02:07]} Bf5 {[%emt 0:02:04]} 5. O-O {[%emt 0:02:21]} e6 {[%emt 0:01:00]} 6. Qb3 {[%emt 0:00:16]} Qb6 {[%emt 0:00:24]} 7. d3 {[%emt 0:00:36]} Nbd7 {[%emt 0:01:46]} 8. Be3 Qxb3 {[%emt 0:00:04]} 9. axb3 {[%emt 0:00:36]} a6 {[%emt 0:03:40]} 10. Nc3 {[%emt 0:12:55]} h6 {[%emt 0:00:16]} 11. Nd4 {[%emt 0:00:08]} Bh7 {[%emt 0:01:07]} 12. Nc2 {[%emt 0:15:24]} Be7 {[%emt 0:00:48]} 13. h3 {[%emt 0:06:24]} O-O {[%emt 0:23:03]} 14. Rfc1 {[%emt 0:10:12]} Rfc8 {[%emt 0:01:17]} 15. d4 {[%emt 0:06:19]} Ne8 {[%emt 0:01:10]} 16. c5 {[%emt 0:09:32]} b6 {[%emt 0:00:55]} 17. b4 {[%emt 0:11:20]} a5 {[%emt 0:01:08]} 18. bxa5 {[%emt 0:00:22]} bxc5 {[%emt 0:08:25]} 19. dxc5 Nxc5 {[%emt 0:00:01]} 20. Bxc5 {[%emt 0:03:05]} Bxc5 {[%emt 0:02:33]} 21. b4 Ba7 {[%emt 0:00:29]} 22. Na4 {[%emt 0:11:24]} Rab8 23. Nb6 {[%emt 0:06:11]} Bxb6 {[%emt 0:01:26]} 24. axb6 Bxc2 {[%emt 0:00:00]} 25. Rxc2 {[%emt 0:00:38]} Rxb6 {[%emt 0:01:02]} 26. e4 {[%emt 0:01:18]} Nd6 27. exd5 {[%emt 0:00:36]} exd5 {[%emt 0:00:59]} 28. Ra7 {[%emt 0:00:04]} Rxb4 {[%emt 0:00:15]} 29. Rd7 {[%emt 0:00:26]} Rc4 {[%emt 0:09:05]} 30. Ra2 {[%emt 0:00:07]} Rc1+ 31. Kh2 {[%emt 1:30:02]} Nb5 {[%emt 1:33:08]} 32. Re2 {[%emt 0:01:10]} Kf8 {[%emt 0:00:27]} 33. Ree7 {[%emt 0:00:17]} Nd6 {[%emt 0:03:48]} 34. Re2 {[%emt 0:00:52]} Re8 {[%emt 0:00:38]} 35. Rb2 {[%emt 0:00:22]} Re6 {[%emt 0:00:18]} 36. Rb8+ {[%emt 0:01:01]} Ne8 37. Rbb7 {[%emt 0:00:04]} Rf6 {[%emt 0:00:43]} 38. f4 {[%emt 0:00:53]} Re1 {[%emt 0:01:03]} 39. h4 {[%emt 0:00:29]} g6 {[%emt 0:03:46]} 40. h5 {[%emt 0:00:00]} gxh5 {[%emt 0:00:00]} 41. Kh3 {[%emt 0:00:00]} Nd6 {[%emt 0:00:00]} 42. Rb6 {[%emt 0:00:00]} Nc4 {[%emt 0:00:00]} 43. Ra6 {[%emt 0:00:00]} Ne3 {[%emt 0:00:00]} 44. Ra2 {[%emt 0:00:00]} Nxg2 {[%emt 0:00:00]} 45. Kxg2 {[%emt 0:00:00]} h4 {[%emt 0:00:00]} 46. Ra8+ Re8 {[%emt 0:00:00]} 47. Raa7 {[%emt 0:00:00]} hxg3 {[%emt 0:00:00]} 48. Kxg3 Re3+ {[%emt 0:00:00]} 49. Kg4 {[%emt 0:00:00]} Re4 {[%emt 0:00:00]} 50. Ra8+ {[%emt 0:00:00]} Kg7 51. Rdd8 {[%emt 0:00:00]} Rfxf4+ {[%emt 0:00:00]} 52. Kg3 {[%emt 0:00:00]} Rf5 53. Rg8+ {[%emt 0:00:00]} Kf6 {[%emt 0:00:00]} 54. Rh8 {[%emt 0:00:00]} Rg5+ 55. Kf3 {[%emt 0:00:00]} Rg6 {[%emt 0:00:00]} 56. Rac8 Ke5 {[%emt 0:00:00]} 0-1

[Event "GER-chT Youth Countries 2020"]
[Site "Berlin"]
[Date "2020.10.01"]
[Round "3"]
[White "Maetzkow, Maximilian Paul"]
[Black "Musiolik, David"]
[Result "0-1"]
[ECO "A05"]
[WhiteElo "2242"]
[BlackElo "2198"]
[Annotator "ChessBase"]
[PlyCount "88"]
[EventDate "2020.09.30"]
[EventType "team-tourn"]
[EventRounds "7"]
[EventCountry "GER"]
[SourceTitle "playchess.com"]
[Source "ChessBase"]
[SourceQuality "1"]
[TimeControl "30/5400+30:0"]

1. Nf3 {[%emt 0:01:02]} Nf6 {[%emt 0:00:08]} 2. e3 {[%emt 0:00:15]} g6 {[%emt 0:00:43]} 3. b4 {[%emt 0:00:08]} Bg7 {[%emt 0:05:38]} 4. Bb2 {[%emt 0:00:14]} b6 {[%emt 0:01:42]} 5. Be2 {[%emt 0:00:17]} c5 {[%emt 0:02:58]} 6. b5 {[%emt 0:03:32]} Bb7 {[%emt 0:01:39]} 7. O-O {[%emt 0:00:11]} O-O {[%emt 0:00:21]} 8. d3 {[%emt 0:01:08]} d6 {[%emt 0:04:34]} 9. Nbd2 {[%emt 0:00:18]} Nbd7 {[%emt 0:01:09]} 10. c4 {[%emt 0:01:32]} e5 {[%emt 0:02:32]} 11. a4 {[%emt 0:01:58]} Re8 {[%emt 0:02:42]} 12. a5 {[%emt 0:01:44]} a6 {[%emt 0:01:20]} 13. Bc3 {[%emt 0:04:26]} axb5 {[%emt 0:03:58]} 14. cxb5 {[%emt 0:15:43]} Nd5 15. Bb2 {[%emt 0:00:46]} Rxa5 {[%emt 0:05:11]} 16. Rxa5 {[%emt 0:03:43]} bxa5 {[%emt 0:00:07]} 17. Nc4 {[%emt 0:00:36]} Qc7 {[%emt 0:02:52]} 18. Nfd2 {[%emt 0:11:16]} Ra8 {[%emt 0:05:51]} 19. Ne4 {[%emt 0:06:10]} Bf8 {[%emt 0:10:56]} 20. f4 {[%emt 0:08:22]} exf4 {[%emt 0:10:37]} 21. exf4 {[%emt 0:00:26]} N5b6 {[%emt 0:01:09]} 22. Ne3 {[%emt 0:12:16]} d5 {[%emt 0:02:45]} 23. Ng5 {[%emt 0:05:26]} d4 {[%emt 0:15:16]} 24. Qb3 {[%emt 0:01:43]} Nf6 {[%emt 0:02:36]} 25. f5 {[%emt 0:01:28]} Nbd5 {[%emt 0:00:47]} 26. fxg6 {[%emt 0:04:57]} hxg6 {[%emt 0:00:16]} 27. Nc4 {[%emt 0:00:54]} Bg7 {[%emt 0:01:49]} 28. Bc1 {[%emt 0:00:53]} Nc3 {[%emt 0:01:13]} 29. Bf3 {[%emt 0:01:26]} Bxf3 {[%emt 0:02:02]} 30. Nxf3 {[%emt 0:00:13]} Ne2+ {[%emt 0:02:59]} 31. Kh1 {[%emt 1:30:02]} Nxc1 {[%emt 1:30:31]} 32. Rxc1 {[%emt 0:00:01]} a4 {[%emt 0:00:27]} 33. Qa2 {[%emt 0:02:08]} Nd5 {[%emt 0:01:11]} 34. Re1 {[%emt 0:02:50]} Nb4 {[%emt 0:01:55]} 35. Qe2 {[%emt 0:00:19]} a3 {[%emt 0:01:14]} 36. Qe4 {[%emt 0:00:25]} Qd8 {[%emt 0:01:37]} 37. Nfd2 {[%emt 0:03:55]} Qd5 {[%emt 0:02:33]} 38. Qxd5 {[%emt 0:02:44]} Nxd5 {[%emt 0:00:01]} 39. b6 {[%emt 0:00:30]} a2 {[%emt 0:02:14]} 40. Nb3 {[%emt 0:00:05]} Rb8 {[%emt 0:01:29]} 41. Ra1 {[%emt 0:01:40]} Nxb6 {[%emt 0:00:00]} 42. Nca5 {[%emt 0:00:00]} c4 {[%emt 0:00:00]} 43. Nc1 {[%emt 0:00:00]} Ra8 {[%emt 0:00:00]} 44. Nxc4 {[%emt 0:00:00]} Nxc4 {[%emt 0:00:00]} 0-1

[Event "GER-chT Youth Countries 2020"]
[Site "Berlin"]
[Date "2020.10.01"]
[Round "3"]
[White "Knuedel, Torben"]
[Black "Schmider, Niklas"]
[Result "1-0"]
[ECO "B94"]
[WhiteElo "2211"]
[BlackElo "2291"]
[Annotator "ChessBase"]
[PlyCount "64"]
[EventDate "2020.09.30"]
[EventType "team-tourn"]
[EventRounds "7"]
[EventCountry "GER"]
[SourceTitle "playchess.com"]
[Source "ChessBase"]
[SourceQuality "1"]
[TimeControl "30/5400+30:0"]

1. e4 {[%emt 0:00:00]} c5 {[%emt 0:00:00]} 2. Nf3 {[%emt 0:00:00]} d6 {[%emt 0:00:00]} 3. d4 {[%emt 0:00:00]} cxd4 {[%emt 0:00:00]} 4. Nxd4 {[%emt 0:00:00]} Nf6 {[%emt 0:00:00]} 5. Nc3 {[%emt 0:00:00]} a6 {[%emt 0:00:04]} 6. Bg5 {[%emt 0:00:00]} Nbd7 {[%emt 0:00:07]} 7. Qe2 {[%emt 0:00:00]} h6 {[%emt 0:00:06]} 8. Bxf6 {[%emt 0:00:00]} Nxf6 {[%emt 0:00:25]} 9. O-O-O {[%emt 0:00:02]} Qa5 {[%emt 0:11:09]} 10. Kb1 {[%emt 0:02:11]} e6 {[%emt 0:05:41]} 11. f4 {[%emt 0:01:12]} Be7 {[%emt 0:05:15]} 12. g4 {[%emt 0:00:48]} Nd7 {[%emt 0:05:45]} 13. h4 {[%emt 0:11:47]} Nc5 {[%emt 0:12:38]} 14. Rh3 {[%emt 0:08:04]} Bd7 {[%emt 0:13:48]} 15. f5 {[%emt 0:10:05]} O-O-O {[%emt 0:04:50]} 16. a3 {[%emt 0:02:26]} Kb8 {[%emt 0:04:51]} 17. e5 {[%emt 0:09:14]} d5 {[%emt 0:04:27]} 18. Bg2 {[%emt 0:06:32]} Na4 {[%emt 0:03:41]} 19. Nxa4 {[%emt 0:04:02]} Qxa4 {[%emt 0:00:20]} 20. Rb3 {[%emt 0:11:53]} Rc8 {[%emt 0:03:47]} 21. g5 {[%emt 0:03:25]} hxg5 {[%emt 0:01:20]} 22. hxg5 {[%emt 0:00:14]} Rh4 {[%emt 0:01:31]} 23. Qf2 {[%emt 0:01:11]} Bxg5 {[%emt 0:10:41]} 24. Nf3 {[%emt 0:05:34]} Rhc4 {[%emt 0:04:31]} 25. Nxg5 {[%emt 0:03:05]} Rxc2 {[%emt 0:00:09]} 26. Qb6 {[%emt 0:00:11]} Bb5 {[%emt 0:01:04]} 27. Rxd5 {[%emt 0:09:44]} exd5 {[%emt 0:05:53]} 28. Bxd5 {[%emt 0:00:13]} R8c7 {[%emt 0:00:34]} 29. e6 {[%emt 0:02:08]} Qf4 {[%emt 0:01:19]} 30. exf7 {[%emt 0:04:16]} Qxf5 {[%emt 0:00:09]} 31. Ne4 {[%emt 1:31:18]} Rc1+ {[%emt 1:30:49]} 32. Ka2 {[%emt 0:00:10]} Qf1 {[%emt 0:00:08]} 1-0

[Event "GER-chT Youth Countries 2020"]
[Site "Berlin"]
[Date "2020.10.01"]
[Round "3"]
[White "Post, Hugo"]
[Black "Haack, Kevin"]
[Result "1-0"]
[ECO "B90"]
[WhiteElo "2209"]
[BlackElo "2209"]
[Annotator "ChessBase"]
[PlyCount "69"]
[EventDate "2020.09.30"]
[EventType "team-tourn"]
[EventRounds "7"]
[EventCountry "GER"]
[SourceTitle "playchess.com"]
[Source "ChessBase"]
[SourceQuality "1"]
[TimeControl "30/5400+30:0"]

1. e4 {[%emt 0:00:00]} c5 2. Nf3 d6 {[%emt 0:00:00]} 3. d4 {[%emt 0:00:00]} cxd4 {[%emt 0:00:00]} 4. Nxd4 Nf6 {[%emt 0:00:00]} 5. Nc3 {[%emt 0:00:00]} a6 6. Be3 {[%emt 0:00:06]} e6 {[%emt 0:00:08]} 7. f3 {[%emt 0:00:12]} b5 {[%emt 0:00:06]} 8. Qd2 {[%emt 0:00:06]} Nbd7 {[%emt 0:00:06]} 9. g4 b4 {[%emt 0:00:30]} 10. Na4 {[%emt 0:00:17]} h6 {[%emt 0:00:32]} 11. Rg1 Qa5 {[%emt 0:08:09]} 12. b3 {[%emt 0:11:37]} d5 {[%emt 0:02:22]} 13. h4 {[%emt 0:07:18]} dxe4 {[%emt 0:11:04]} 14. g5 {[%emt 0:00:57]} hxg5 {[%emt 0:01:28]} 15. hxg5 {[%emt 0:05:03]} Nd5 {[%emt 0:01:06]} 16. fxe4 {[%emt 0:06:45]} Nxe3 {[%emt 0:03:04]} 17. Qxe3 {[%emt 0:00:09]} g6 {[%emt 0:02:42]} 18. O-O-O {[%emt 0:03:42]} Bb7 {[%emt 0:05:50]} 19. Bh3 {[%emt 0:05:54]} Nc5 {[%emt 0:05:44]} 20. Rgf1 {[%emt 0:01:27]} Rh7 {[%emt 0:06:22]} 21. Qf4 {[%emt 0:23:08]} Be7 {[%emt 0:05:46]} 22. Kb1 {[%emt 0:06:04]} Nxa4 {[%emt 0:12:06]} 23. bxa4 {[%emt 0:00:23]} Bxg5 {[%emt 0:01:29]} 24. Qg3 {[%emt 0:03:17]} Bh4 {[%emt 0:11:35]} 25. Qh2 {[%emt 0:01:45]} e5 {[%emt 0:04:07]} 26. Nb3 {[%emt 0:03:44]} Qb6 {[%emt 0:02:48]} 27. Qxe5+ {[%emt 0:00:33]} Kf8 {[%emt 0:02:08]} 28. Rd7 {[%emt 0:03:42]} Kg8 {[%emt 0:02:07]} 29. Qf4 {[%emt 0:02:56]} Rf8 30. Rd6 Qa7 {[%emt 0:04:33]} 31. Rxg6+ {[%emt 1:31:15]} Kh8 {[%emt 1:30:13]} 32. Rh6 {[%emt 0:00:20]} Bxe4 {[%emt 0:04:01]} 33. Rxh7+ {[%emt 0:03:17]} Bxh7 {[%emt 0:00:08]} 34. Qxh4 {[%emt 0:00:07]} f6 35. Bf5 {[%emt 0:00:40]} 1-0

[Event "GER-chT Youth Countries 2020"]
[Site "Berlin"]
[Date "2020.10.01"]
[Round "3"]
[White "Matthes, Aaron"]
[Black "Jeschke, Jan"]
[Result "0-1"]
[ECO "A45"]
[WhiteElo "2198"]
[BlackElo "2043"]
[Annotator "ChessBase"]
[PlyCount "35"]
[EventDate "2020.09.30"]
[EventType "team-tourn"]
[EventRounds "7"]
[EventCountry "GER"]
[SourceTitle "playchess.com"]
[Source "ChessBase"]
[SourceQuality "1"]
[TimeControl "30/5400+30:0"]

1. d4 Nf6 {[%emt 0:00:00]} 2. Bg5 {[%emt 0:00:00]} c5 {[%emt 0:27:25]} 3. d5 {[%emt 0:00:00]} Qb6 {[%emt 0:04:07]} 4. Nc3 {[%emt 0:00:12]} Qxb2 {[%emt 0:07:56]} 5. Bd2 {[%emt 0:00:08]} Qb6 {[%emt 0:00:57]} 6. e4 {[%emt 0:00:05]} d6 {[%emt 0:01:17]} 7. f4 {[%emt 0:00:04]} a6 {[%emt 0:15:53]} 8. Nf3 {[%emt 0:01:39]} g6 {[%emt 0:02:37]} 9. e5 {[%emt 0:09:34]} Nh5 {[%emt 0:02:23]} 10. Bc4 {[%emt 0:03:15]} Bg7 {[%emt 0:01:51]} 11. O-O {[%emt 0:02:42]} O-O {[%emt 0:00:37]} 12. Qe1 {[%emt 0:02:06]} Qc7 {[%emt 0:03:47]} 13. a4 {[%emt 0:02:39]} Nd7 {[%emt 0:00:18]} 14. e6 {[%emt 0:18:01]} Nb6 {[%emt 0:01:24]} 15. Qe4 {[%emt 0:02:09]} fxe6 {[%emt 0:02:27]} 16. Ng5 {[%emt 0:01:08]} Bd4+ {[%emt 0:02:30]} 17. Kh1 {[%emt 0:02:46]} Nxc4 {[%emt 0:00:58]} 18. Be1 {[%emt 0:00:22]} 0-1

[Event "GER-chT Youth Countries 2020"]
[Site "Berlin"]
[Date "2020.10.01"]
[Round "3"]
[White "Lesny, Florian"]
[Black "Pallas, Sebastian"]
[Result "1-0"]
[ECO "B90"]
[WhiteElo "2178"]
[BlackElo "2315"]
[Annotator "ChessBase"]
[PlyCount "105"]
[EventDate "2020.09.30"]
[EventType "team-tourn"]
[EventRounds "7"]
[EventCountry "GER"]
[SourceTitle "playchess.com"]
[Source "ChessBase"]
[SourceQuality "1"]
[TimeControl "30/5400+30:0"]

1. e4 {[%emt 0:00:00]} c5 {[%emt 0:00:00]} 2. Nf3 {[%emt 0:00:00]} d6 {[%emt 0:00:01]} 3. d4 {[%emt 0:00:00]} cxd4 {[%emt 0:00:26]} 4. Nxd4 {[%emt 0:00:00]} Nf6 {[%emt 0:00:29]} 5. Nc3 {[%emt 0:00:03]} a6 {[%emt 0:01:14]} 6. Be3 {[%emt 0:00:10]} e6 {[%emt 0:01:23]} 7. Be2 {[%emt 0:00:13]} Nbd7 {[%emt 0:01:48]} 8. a4 {[%emt 0:00:47]} b6 {[%emt 0:02:18]} 9. f4 {[%emt 0:01:07]} Bb7 {[%emt 0:01:24]} 10. Bf3 {[%emt 0:00:38]} Rc8 {[%emt 0:06:23]} 11. O-O {[%emt 0:02:14]} Rxc3 {[%emt 0:10:54]} 12. bxc3 {[%emt 0:00:23]} Nxe4 {[%emt 0:00:20]} 13. c4 {[%emt 0:03:41]} Qc7 {[%emt 0:04:57]} 14. a5 {[%emt 0:06:39]} bxa5 {[%emt 0:00:49]} 15. Nb3 {[%emt 0:06:41]} a4 {[%emt 0:11:01]} 16. Qd4 {[%emt 0:04:22]} axb3 {[%emt 0:14:32]} 17. Bxe4 {[%emt 0:00:21]} d5 {[%emt 0:00:23]} 18. cxd5 {[%emt 0:08:26]} Bc5 {[%emt 0:00:11]} 19. Qc3 {[%emt 0:07:41]} exd5 {[%emt 0:09:25]} 20. Bf5 {[%emt 0:03:49]} O-O {[%emt 0:00:12]} 21. Bxd7 {[%emt 0:01:34]} Bxe3+ {[%emt 0:00:26]} 22. Qxe3 {[%emt 0:00:58]} Qxd7 {[%emt 0:00:37]} 23. Qxb3 {[%emt 0:02:47]} d4 {[%emt 0:02:53]} 24. Rfe1 {[%emt 0:07:25]} h6 25. Re2 {[%emt 0:07:49]} Bc6 {[%emt 0:11:44]} 26. Rd2 {[%emt 0:06:48]} Re8 {[%emt 0:03:25]} 27. Qg3 {[%emt 0:02:13]} Bb5 {[%emt 0:04:41]} 28. Rad1 {[%emt 0:02:56]} Re4 {[%emt 0:03:33]} 29. Re1 {[%emt 0:03:49]} Qf5 {[%emt 0:02:23]} 30. Rxe4 {[%emt 0:02:06]} Qxe4 {[%emt 0:00:04]} 31. h3 {[%emt 1:33:05]} a5 {[%emt 1:31:12]} 32. Kh2 {[%emt 0:00:45]} a4 {[%emt 0:02:48]} 33. Qf3 {[%emt 0:05:18]} Qe3 {[%emt 0:01:08]} 34. Qxe3 {[%emt 0:02:27]} dxe3 {[%emt 0:00:03]} 35. Rd8+ {[%emt 0:00:23]} Kh7 {[%emt 0:00:09]} 36. Kg3 {[%emt 0:01:31]} g5 {[%emt 0:02:27]} 37. fxg5 {[%emt 0:02:57]} hxg5 {[%emt 0:00:07]} 38. Rd5 {[%emt 0:01:03]} Bc6 {[%emt 0:01:12]} 39. Re5 {[%emt 0:04:48]} f5 {[%emt 0:00:43]} 40. Rxf5 {[%emt 0:00:52]} Be4 {[%emt 0:00:51]} 41. Rxg5 {[%emt 0:00:00]} Bxc2 {[%emt 0:00:00]} 42. Re5 {[%emt 0:00:00]} a3 {[%emt 0:00:00]} 43. Rxe3 {[%emt 0:00:00]} a2 {[%emt 0:00:00]} 44. Ra3 {[%emt 0:00:00]} Bb3 {[%emt 0:00:00]} 45. Kf4 {[%emt 0:00:00]} Kg6 {[%emt 0:00:00]} 46. Ra5 {[%emt 0:00:00]} Bc4 {[%emt 0:00:00]} 47. g3 {[%emt 0:00:00]} Be6 {[%emt 0:00:00]} 48. h4 {[%emt 0:00:00]} Bc4 {[%emt 0:00:00]} 49. Ke3 {[%emt 0:00:00]} Bb3 {[%emt 0:00:00]} 50. Kd2 {[%emt 0:00:00]} Bd5 {[%emt 0:00:00]} 51. Kc3 {[%emt 0:00:00]} Be6 {[%emt 0:00:00]} 52. Kb2 {[%emt 0:00:00]} Bc4 {[%emt 0:00:00]} 53. Rxa2 {[%emt 0:00:00]} 1-0

[Event "GER-chT Youth Countries 2020"]
[Site "Berlin"]
[Date "2020.10.01"]
[Round "3"]
[White "Hinrichs, Paul"]
[Black "Ermitsch, Magnus"]
[Result "1-0"]
[ECO "E54"]
[WhiteElo "2152"]
[BlackElo "2025"]
[Annotator "ChessBase"]
[PlyCount "100"]
[EventDate "2020.09.30"]
[EventType "team-tourn"]
[EventRounds "7"]
[EventCountry "GER"]
[SourceTitle "playchess.com"]
[Source "ChessBase"]
[SourceQuality "1"]
[TimeControl "30/5400+30:0"]

1. d4 {[%emt 0:00:00]} Nf6 {[%emt 0:00:07]} 2. c4 {[%emt 0:00:00]} e6 {[%emt 0:00:42]} 3. Nc3 {[%emt 0:01:00]} Bb4 {[%emt 0:00:20]} 4. e3 {[%emt 0:00:10]} O-O {[%emt 0:01:18]} 5. Bd3 c5 6. Nf3 {[%emt 0:00:18]} d5 {[%emt 0:01:24]} 7. O-O {[%emt 0:00:47]} dxc4 8. Bxc4 {[%emt 0:00:07]} cxd4 {[%emt 0:02:25]} 9. exd4 {[%emt 0:01:01]} b6 {[%emt 0:03:23]} 10. Bg5 {[%emt 0:02:03]} Bb7 {[%emt 0:02:25]} 11. Rc1 {[%emt 0:00:29]} h6 {[%emt 0:01:33]} 12. Bh4 {[%emt 0:11:18]} Nc6 {[%emt 0:00:30]} 13. a3 {[%emt 0:00:30]} Be7 {[%emt 0:00:30]} 14. Re1 {[%emt 0:00:30]} Nd5 {[%emt 0:00:30]} 15. Bxd5 {[%emt 0:00:30]} Bxh4 {[%emt 0:00:30]} 16. Nxh4 {[%emt 0:19:20]} Qxh4 {[%emt 0:09:02]} 17. g3 {[%emt 0:00:56]} Qd8 {[%emt 0:00:30]} 18. Bg2 {[%emt 0:00:30]} Na5 {[%emt 0:17:14]} 19. d5 {[%emt 0:05:58]} exd5 {[%emt 0:00:30]} 20. Nxd5 {[%emt 0:23:31]} Rb8 {[%emt 0:03:31]} 21. b4 {[%emt 0:00:22]} Bxd5 {[%emt 0:04:40]} 22. Qxd5 {[%emt 0:00:30]} Qxd5 {[%emt 0:00:30]} 23. Bxd5 {[%emt 0:00:30]} Rfd8 {[%emt 0:00:30]} 24. Bxf7+ {[%emt 0:00:30]} Kxf7 {[%emt 0:00:30]} 25. bxa5 {[%emt 0:00:30]} bxa5 {[%emt 0:00:30]} 26. Rc7+ {[%emt 0:00:30]} Kf6 {[%emt 0:00:30]} 27. Ree7 {[%emt 0:00:30]} Rg8 28. Rf7+ {[%emt 0:08:26]} Kg6 {[%emt 0:16:55]} 29. Rf4 {[%emt 0:02:26]} h5 {[%emt 0:10:50]} 30. Ra4 {[%emt 0:03:39]} Rgf8 {[%emt 0:00:37]} 31. Rxa5 {[%emt 1:30:30]} Rb1+ {[%emt 1:30:30]} 32. Kg2 {[%emt 0:00:06]} Rb2 {[%emt 0:01:17]} 33. Rc6+ {[%emt 0:00:52]} Kh7 {[%emt 0:00:30]} 34. Rxh5+ {[%emt 0:00:27]} Kg8 {[%emt 0:06:04]} 35. h4 {[%emt 0:01:15]} Rbxf2+ {[%emt 0:00:30]} 36. Kh3 {[%emt 0:00:30]} R2f5 37. Rg5 {[%emt 0:03:30]} Rxg5 {[%emt 0:08:06]} 38. hxg5 {[%emt 0:01:11]} Rf5 {[%emt 0:01:18]} 39. g6 {[%emt 0:00:13]} Kf8 {[%emt 0:02:16]} 40. Ra6 Rc5 41. Rxa7 {[%emt 0:02:09]} Rc6 {[%emt 0:00:50]} 42. Rf7+ {[%emt 0:00:00]} Kg8 43. a4 {[%emt 0:00:00]} Rxg6 {[%emt 0:03:12]} 44. Rf5 {[%emt 0:00:00]} Ra6 {[%emt 0:00:00]} 45. a5 {[%emt 0:00:00]} Kh7 46. Kg4 {[%emt 0:00:00]} g6 {[%emt 0:00:00]} 47. Rb5 {[%emt 0:00:00]} Rc6 {[%emt 0:00:00]} 48. Kg5 {[%emt 0:00:00]} Ra6 49. g4 {[%emt 0:00:00]} Rc6 {[%emt 0:00:00]} 50. Kh4 Rc4 1-0